fUST/lending_fUST_20250128
["ID","MTS","AMOUNT","RATE_DAILY","PERIOD"]
[350612155,1737994028143,-540.3224408,0.00015854,2]
[350612156,1737994043142,-3408.55722856,0.00015854,2]
[350612157,1737994043163,-300.0,0.00016014,2]
[350612158,1737994043188,-300.0,0.00016176,2]
[350612159,1737994043210,-1597.83584161,0.00016177,2]
[350612160,1737994044092,-962.50254087,0.00016177,2]
[350612162,1737994147166,-176.816192,0.00015706,2]
[350612163,1737994147188,-300.0,0.00016176,2]
[350612164,1737994147210,-2439.66161752,0.00016177,2]
[350612165,1737994147233,-5000.0,0.00016177,2]
[350612166,1737994147255,-5000.0,0.00016177,2]
[350612167,1737994147276,-5000.0,0.00016177,2]
[350612168,1737994147297,-5000.0,0.00016177,2]
[350612169,1737994147317,-154.19340964,0.00016338,2]
[350612170,1737994147339,-500.0,0.00016438,2]
[350612171,1737994147359,-500.0,0.00016438,2]
[350612172,1737994147379,-500.0,0.00016438,2]
[350612173,1737994147402,-500.0,0.00016438,2]
[350612174,1737994147423,-500.0,0.00016438,2]
[350612175,1737994147445,-500.0,0.00016438,2]
[350612176,1737994147466,-500.0,0.00016438,2]
[350612177,1737994147488,-500.0,0.00016438,2]
[350612178,1737994147509,-500.0,0.00016438,2]
[350612179,1737994147531,-500.0,0.00016438,2]
[350612180,1737994147551,-500.0,0.00016438,2]
[350612181,1737994147573,-500.0,0.00016438,2]
[350612182,1737994147595,-500.0,0.00016438,2]
[350612183,1737994147615,-515.66,0.00016438,2]
[350612184,1737994147635,-500.0,0.00016438,2]
[350612185,1737994147658,-500.0,0.00016438,2]
[350612186,1737994147678,-500.0,0.00016438,2]
[350612187,1737994147698,-642.61,0.00016438,2]
[350612188,1737994147719,-500.0,0.00016438,2]
[350612189,1737994147740,-608.55,0.00016438,2]
[350612190,1737994147762,-500.0,0.00016438,2]
[350612191,1737994147782,-500.0,0.00016438,2]
[350612192,1737994147803,-500.0,0.00016438,2]
[350612193,1737994147824,-500.0,0.00016438,2]
[350612194,1737994147846,-500.0,0.00016438,2]
[350612195,1737994147867,-462.90653189,0.00016575,2]
[350612196,1737994147888,-500.0,0.00016575,2]
[350612197,1737994147913,-500.0,0.00016575,2]
[350612198,1737994147936,-500.0,0.00016575,2]
[350612199,1737994147962,-500.0,0.00016575,2]
[350612200,1737994147984,-500.0,0.00016575,2]
[350612201,1737994148007,-500.0,0.00016575,2]
[350612202,1737994148031,-500.0,0.00016575,2]
[350612203,1737994148056,-500.0,0.00016575,2]
[350612204,1737994148077,-500.0,0.00016575,2]
[350612205,1737994148100,-500.0,0.00016575,2]
[350612206,1737994148125,-500.0,0.00016575,2]
[350612207,1737994148151,-500.0,0.00016575,2]
[350612208,1737994148175,-500.0,0.00016575,2]
[350612209,1737994148214,-500.0,0.00016575,2]
[350612210,1737994148238,-500.0,0.00016575,2]
[350612211,1737994148259,-1215.1295236,0.00016678,2]
[350612212,1737994148282,-412.88877714,0.00016712,2]
[350612213,1737994148305,-500.0,0.00016712,2]
[350612214,1737994148329,-500.0,0.00016712,2]
[350612215,1737994148351,-500.0,0.00016712,2]
[350612216,1737994148372,-369.83453778,0.00016712,2]
[350612217,1737994148397,-500.0,0.00016712,2]
[350612218,1737994148420,-500.0,0.00016712,2]
[350612219,1737994148454,-553.91,0.00016712,2]
[350612220,1737994148486,-500.0,0.00016712,2]
[350612221,1737994148509,-500.0,0.00016712,2]
[350612222,1737994148532,-442.13,0.00016712,2]
[350612223,1737994148553,-500.0,0.00016712,2]
[350612224,1737994148574,-425.14,0.00016712,2]
[350612225,1737994148604,-500.0,0.00016712,2]
[350612226,1737994148630,-500.0,0.00016849,2]
[350612227,1737994148659,-500.0,0.00016849,2]
[350612228,1737994148684,-500.0,0.00016849,2]
[350612229,1737994148712,-410.57893027,0.00016849,2]
[350612230,1737994148734,-500.0,0.00016849,2]
[350612231,1737994148755,-500.0,0.00016849,2]
[350612232,1737994148776,-500.0,0.00016849,2]
[350612233,1737994148797,-217.68,0.00016849,2]
[350612234,1737994148819,-500.0,0.00016849,2]
[350612235,1737994148841,-500.0,0.00016986,2]
[350612236,1737994148862,-500.0,0.00016986,2]
[350612237,1737994148884,-573.75421978,0.00016986,2]
[350612238,1737994148907,-500.0,0.00016986,2]
[350612239,1737994148929,-500.0,0.00016986,2]
[350612240,1737994148952,-500.0,0.00016986,2]
[350612241,1737994148979,-500.0,0.00016986,2]
[350612242,1737994149004,-500.0,0.00017123,2]
[350612243,1737994149034,-500.0,0.00017123,2]
[350612244,1737994149063,-500.0,0.00017123,2]
[350612245,1737994149091,-500.0,0.00017123,2]
[350612246,1737994149118,-500.0,0.00017123,2]
[350612247,1737994149150,-500.0,0.00017123,2]
[350612248,1737994149180,-500.0,0.0001726,2]
[350612249,1737994149212,-500.0,0.0001726,2]
[350612250,1737994149241,-236.89126819,0.0001726,2]
[350612251,1737994149272,-500.0,0.0001726,2]
[350612252,1737994149299,-500.0,0.0001726,2]
[350612253,1737994149327,-639.71,0.0001726,2]
[350612254,1737994149354,-500.0,0.00017397,2]
[350612255,1737994149380,-500.0,0.00017397,2]
[350612256,1737994149410,-307.24217981,0.00017397,2]
[350612257,1737994149437,-500.0,0.00017397,2]
[350612258,1737994149461,-9141.98590628,0.00017525,2]
[350612259,1737994149489,-500.0,0.00017534,2]
[350612260,1737994149520,-500.0,0.00017534,2]
[350612261,1737994149549,-500.0,0.00017534,2]
[350612262,1737994149578,-3882.408237,0.00017616,2]
[350612263,1737994149606,-500.0,0.00017671,2]
[350612264,1737994149633,-500.0,0.00017671,2]
[350612265,1737994149665,-500.0,0.00017671,2]
[350612266,1737994149690,-420.0,0.00017683,2]
[350612267,1737994149716,-500.0,0.00017808,2]
[350612268,1737994149741,-500.0,0.00017808,2]
[350612269,1737994149764,-500.0,0.00017808,2]
[350612270,1737994149788,-154.19340963,0.00017887,2]
[350612271,1737994149813,-361.84746507,0.00017945,2]
[350612272,1737994151215,-490.0,0.00016438,2]
[350612273,1737994172134,-10.0,0.00016438,2]
[350612274,1737994172157,-500.0,0.00016438,2]
[350612275,1737994172183,-380.0,0.00016575,2]
[350612276,1737994172207,-500.0,0.00016575,2]
[350612277,1737994172231,-500.0,0.00016712,2]
[350612278,1737994172254,-355.13,0.00016849,2]
[350612279,1737994172279,-138.15253493,0.00017945,2]
[350612280,1737994172303,-249.46707678,0.00017945,2]
[350612281,1737994172326,-500.0,0.00017945,2]
[350612282,1737994172351,-500.0,0.00017975,2]
[350612283,1737994172374,-500.0,0.00018082,2]
[350612284,1737994172398,-500.0,0.00018082,2]
[350612285,1737994172423,-500.0,0.00018219,2]
[350612286,1737994172446,-500.0,0.00018219,2]
[350612287,1737994172468,-398.93892401,0.00018356,2]
[350612288,1737994172491,-500.0,0.00018356,2]
[350612289,1737994172513,-500.0,0.00018493,2]
[350612290,1737994172534,-500.0,0.0001863,2]
[350612291,1737994172556,-437.41414451,0.00018767,2]
[350612342,1737994232610,-350.67999,0.00016438,2]
[350612343,1737994232664,-149.32001,0.00016438,2]
[350612344,1737994232673,-500.0,0.00016438,2]
[350612345,1737994232683,-321.38065484,0.00016438,2]
[350612346,1737994232694,-178.61934516,0.00016438,2]
[350612347,1737994232704,-500.0,0.00016438,2]
[350612348,1737994232717,-500.0,0.00016438,2]
[350612349,1737994232726,-500.0,0.00016438,2]
[350612350,1737994232736,-503.52044485,0.00016438,2]
[350612351,1737994232745,-607.46101656,0.00016575,2]
[350612352,1737994232755,-209.72,0.00016575,2]
[350612353,1737994232765,-500.0,0.00016575,2]
[350612354,1737994232774,-500.0,0.00016712,2]
[350612355,1737994232783,-567.65779226,0.00016849,2]
[350612356,1737994232793,-62.58585549,0.00018767,2]
[350612357,1737994232802,-211.90289788,0.000189,2]
[350612358,1737994232812,-500.0,0.00018904,2]
[350612359,1737994232821,-500.0,0.00018905,2]
[350612360,1737994232830,-598.95669132,0.00018905,2]
[350612361,1737994232839,-502.26084643,0.00018905,2]
[350612362,1737994232849,-500.0,0.00018905,2]
[350612363,1737994232859,-500.0,0.00018905,2]
[350612364,1737994232868,-505.15330874,0.00018905,2]
[350612365,1737994232878,-500.0,0.00018905,2]
[350612366,1737994232887,-513.21978308,0.00018905,2]
[350612367,1737994232897,-500.0,0.00018905,2]
[350612368,1737994232906,-500.0,0.00018905,2]
[350612369,1737994232916,-424.80676561,0.00018905,2]
[350612370,1737994232925,-500.0,0.00018905,2]
[350612371,1737994232934,-500.0,0.00018905,2]
[350612372,1737994232943,-500.0,0.00018905,2]
[350612373,1737994232952,-602.76163995,0.00018905,2]
[350612374,1737994232963,-500.0,0.00018905,2]
[350612375,1737994232975,-500.0,0.00018905,2]
[350612376,1737994232984,-500.0,0.00018905,2]
[350612377,1737994232994,-500.0,0.00018905,2]
[350612378,1737994233003,-500.0,0.00018905,2]
[350612379,1737994233014,-500.0,0.00018905,2]
[350612380,1737994233023,-500.0,0.00018905,2]
[350612381,1737994233033,-500.0,0.00018905,2]
[350612382,1737994233043,-500.0,0.00018905,2]
[350612383,1737994233053,-500.0,0.00018905,2]
[350612384,1737994233063,-500.0,0.00018905,2]
[350612385,1737994233073,-501.19171411,0.00018905,2]
[350612386,1737994233082,-500.0,0.00018905,2]
[350612387,1737994233093,-500.0,0.00018905,2]
[350612388,1737994233102,-500.0,0.00018905,2]
[350612389,1737994233112,-500.0,0.00018905,2]
[350612390,1737994233122,-501.16786658,0.00018905,2]
[350612391,1737994233132,-500.0,0.00018905,2]
[350612392,1737994233143,-500.0,0.00018905,2]
[350612393,1737994233153,-500.0,0.00018905,2]
[350612394,1737994233162,-587.63,0.00018905,2]
[350612395,1737994233173,-500.0,0.00018905,2]
[350612396,1737994233183,-500.0,0.00018905,2]
[350612397,1737994233194,-500.0,0.00018905,2]
[350612398,1737994233204,-500.0,0.00018905,2]
[350612399,1737994233217,-500.0,0.00018905,2]
[350612400,1737994233226,-32.27973247,0.00018905,2]
[350612401,1737994233243,-373.6340715,0.00018905,2]
[350612423,1737994238382,-500.0,0.00016438,2]
[350612424,1737994238392,-45.16867919,0.00018905,2]
[350612427,1737994238437,-48.91751684,0.00018905,2]
[350612428,1737994238447,-500.0,0.00018905,2]
[350612430,1737994238456,-500.0,0.00018905,2]
[350612432,1737994238467,-500.0,0.00018905,2]
[350612434,1737994238477,-500.0,0.00018905,2]
[350612436,1737994238487,-500.0,0.00018905,2]
[350612438,1737994238496,-500.0,0.00018905,2]
[350612440,1737994238506,-500.0,0.00018905,2]
[350612442,1737994238515,-500.0,0.00018905,2]
[350612444,1737994238525,-500.0,0.00018905,2]
[350612446,1737994238535,-500.0,0.00018905,2]
[350612448,1737994238544,-500.0,0.00018905,2]
[350612450,1737994238554,-500.0,0.00018905,2]
[350612452,1737994238563,-559.46,0.00018905,2]
[350612454,1737994238573,-127.61518947,0.00018905,2]
[350612457,1737994238584,-372.38481053,0.00018905,2]
[350612459,1737994238594,-1755.22,0.00018905,2]
[350612461,1737994238604,-500.0,0.00018905,2]
[350612463,1737994238613,-500.0,0.00018905,2]
[350612465,1737994238623,-500.0,0.00018905,2]
[350612467,1737994238632,-500.0,0.00018905,2]
[350612469,1737994238641,-500.0,0.00018905,2]
[350612471,1737994238650,-547.12,0.00018905,2]
[350612473,1737994238659,-643.34541767,0.00018905,2]
[350612475,1737994238668,-500.0,0.00018905,2]
[350612477,1737994238678,-500.0,0.00018905,2]
[350612479,1737994238687,-495.08573372,0.00018905,2]
[350612481,1737994238697,-500.0,0.00018905,2]
[350612483,1737994238706,-500.0,0.00018905,2]
[350612485,1737994238715,-500.0,0.00018905,2]
[350612487,1737994238724,-500.0,0.00018905,2]
[350612489,1737994238733,-500.0,0.00018905,2]
[350612491,1737994238743,-500.0,0.00018905,2]
[350612493,1737994238752,-500.0,0.00018905,2]
[350612495,1737994238761,-500.0,0.00018905,2]
[350612497,1737994238771,-500.0,0.00018905,2]
[350612499,1737994238780,-500.0,0.00018905,2]
[350612501,1737994238789,-500.0,0.00018905,2]
[350612503,1737994238799,-505.85656951,0.00018905,2]
[350612505,1737994238809,-500.0,0.00018905,2]
[350612507,1737994238818,-500.0,0.00018905,2]
[350612509,1737994238827,-500.0,0.00018905,2]
[350612511,1737994238836,-500.0,0.00018905,2]
[350612513,1737994238846,-500.0,0.00018905,2]
[350612515,1737994238855,-500.0,0.00018905,2]
[350612517,1737994238864,-500.0,0.00018905,2]
[350612519,1737994238873,-500.0,0.00018905,2]
[350612521,1737994238883,-500.0,0.00018905,2]
[350612523,1737994238892,-500.0,0.00018905,2]
[350612525,1737994238902,-500.0,0.00018905,2]
[350612527,1737994238911,-500.0,0.00018906,2]
[350612529,1737994238921,-500.0,0.00018906,2]
[350612531,1737994238931,-500.0,0.00018906,2]
[350612533,1737994238941,-500.0,0.00018906,2]
[350612535,1737994238950,-500.0,0.00018906,2]
[350612537,1737994238960,-500.0,0.00018906,2]
[350612539,1737994238972,-500.0,0.00018906,2]
[350612541,1737994238985,-527.75,0.00018906,2]
[350612543,1737994238995,-500.0,0.00018906,2]
[350612545,1737994239004,-500.0,0.00018906,2]
[350612547,1737994239014,-500.0,0.00018906,2]
[350612549,1737994239023,-154.90705577,0.00018907,2]
[350612550,1737994239033,-500.0,0.00018907,2]
[350612552,1737994239043,-500.0,0.00018907,2]
[350612554,1737994239053,-500.0,0.00018907,2]
[350612557,1737994239065,-500.0,0.00018907,2]
[350612559,1737994239076,-500.0,0.00018907,2]
[350612561,1737994239085,-500.0,0.00018907,2]
[350612563,1737994239095,-500.0,0.00018907,2]
[350612565,1737994239104,-500.0,0.00018907,2]
[350612567,1737994239113,-500.0,0.00018907,2]
[350612569,1737994239123,-500.0,0.00018907,2]
[350612571,1737994239132,-500.0,0.00018907,2]
[350612573,1737994239141,-500.0,0.00018907,2]
[350612575,1737994239151,-500.0,0.00018907,2]
[350612577,1737994239160,-500.0,0.00018907,2]
[350612579,1737994239169,-500.0,0.00018907,2]
[350612581,1737994239179,-500.0,0.00018907,2]
[350612583,1737994239188,-500.0,0.00018907,2]
[350612585,1737994239198,-500.0,0.00018907,2]
[350612587,1737994239207,-500.0,0.00018908,2]
[350612589,1737994239218,-500.0,0.00018908,2]
[350612591,1737994239227,-591.40379483,0.00018908,2]
[350612593,1737994239237,-500.0,0.00018908,2]
[350612595,1737994239246,-256.57398895,0.00018908,2]
[350612597,1737994239256,-502.59437537,0.00018908,2]
[350612599,1737994239265,-506.38409299,0.00018908,2]
[350612601,1737994239275,-500.0,0.00018908,2]
[350612603,1737994239284,-613.93480986,0.00018908,2]
[350612605,1737994239294,-514.53042832,0.00018908,2]
[350612607,1737994239303,-506.07222546,0.00018908,2]
[350612609,1737994239312,-509.88848356,0.00018908,2]
[350612611,1737994239322,-500.0,0.00018908,2]
[350612613,1737994239331,-410.87524537,0.00018908,2]
[350612615,1737994239341,-500.0,0.00018908,2]
[350612617,1737994239351,-500.0,0.00019041,2]
[350612619,1737994239360,-500.0,0.00019042,2]
[350612621,1737994239369,-500.0,0.00019042,2]
[350612623,1737994239379,-500.0,0.00019042,2]
[350612625,1737994239388,-500.0,0.00019042,2]
[350612627,1737994239397,-500.0,0.00019042,2]
[350612629,1737994239406,-500.0,0.00019042,2]
[350612631,1737994239415,-500.0,0.00019042,2]
[350612633,1737994239424,-352.52165427,0.00019042,2]
[350612635,1737994239433,-500.0,0.00019042,2]
[350612637,1737994239443,-500.0,0.00019042,2]
[350612639,1737994239452,-500.0,0.00019042,2]
[350612652,1737994239561,-500.0,0.00019042,2]
[350612654,1737994239571,-500.0,0.00019042,2]
[350612656,1737994239580,-500.0,0.00019042,2]
[350612658,1737994239590,-500.0,0.00019042,2]
[350612660,1737994239599,-500.0,0.00019042,2]
[350612662,1737994239609,-500.0,0.00019042,2]
[350612664,1737994239618,-500.0,0.00019042,2]
[350612666,1737994239627,-500.0,0.00019042,2]
[350612668,1737994239637,-1755.22,0.00019042,2]
[350612670,1737994239646,-500.0,0.00019042,2]
[350612672,1737994239655,-500.0,0.00019042,2]
[350612674,1737994239665,-500.0,0.00019042,2]
[350612676,1737994239674,-500.0,0.00019042,2]
[350612678,1737994239684,-500.0,0.00019042,2]
[350612680,1737994239693,-500.0,0.00019042,2]
[350612682,1737994239702,-500.0,0.00019042,2]
[350612684,1737994239711,-500.0,0.00019042,2]
[350612686,1737994239722,-500.0,0.00019042,2]
[350612688,1737994239734,-500.0,0.00019042,2]
[350612690,1737994239744,-500.0,0.00019042,2]
[350612692,1737994239753,-500.0,0.00019042,2]
[350612694,1737994239762,-500.0,0.00019042,2]
[350612696,1737994239771,-500.0,0.00019042,2]
[350612698,1737994239781,-500.0,0.00019042,2]
[350612700,1737994239790,-500.0,0.00019042,2]
[350612702,1737994239799,-500.0,0.00019042,2]
[350612704,1737994239808,-500.0,0.00019042,2]
[350612706,1737994239817,-500.0,0.00019042,2]
[350612708,1737994239826,-500.0,0.00019042,2]
[350612710,1737994239835,-500.0,0.00019042,2]
[350612712,1737994239845,-242.25715638,0.00019042,2]
[350612714,1737994239855,-344.83900729,0.00019042,2]
[350612716,1737994239864,-500.0,0.00019042,2]
[350612718,1737994239873,-574.16629416,0.00019042,2]
[350612720,1737994239882,-500.0,0.00019042,2]
[350612722,1737994239891,-500.0,0.00019042,2]
[350612724,1737994239900,-500.0,0.00019042,2]
[350612726,1737994239910,-500.0,0.00019043,2]
[350612727,1737994239919,-500.0,0.00019043,2]
[350612730,1737994239928,-500.0,0.00019043,2]
[350612732,1737994239938,-500.0,0.00019043,2]
[350612734,1737994239947,-73.02895631,0.00019043,2]
[350612736,1737994239962,-263.33656978,0.00019043,2]
[350612738,1737994239975,-500.0,0.00019043,2]
[350612741,1737994239985,-500.0,0.00019044,2]
[350612743,1737994239994,-500.0,0.00019044,2]
[350612745,1737994240003,-500.0,0.00019044,2]
[350612747,1737994240014,-500.0,0.00019044,2]
[350612749,1737994240025,-313.83894129,0.00019044,2]
[350612751,1737994240034,-500.0,0.00019044,2]
[350612754,1737994240048,-500.0,0.00019044,2]
[350612756,1737994240058,-602.4,0.00019044,2]
[350612758,1737994240067,-500.0,0.00019044,2]
[350612760,1737994240077,-500.0,0.00019044,2]
[350612762,1737994240085,-500.0,0.00019044,2]
[350612764,1737994240095,-500.0,0.00019045,2]
[350612767,1737994240105,-4771.077634,0.00019165,2]
[350612771,1737994240117,-12450.48703454,0.00019165,2]
[350612775,1737994240129,-2625.03595768,0.00019165,2]
[350612778,1737994240142,-19848.50680724,0.00019165,2]
[350612781,1737994240154,-2074.93772859,0.00019165,2]
[350612785,1737994240166,-1748.8516315,0.00019165,2]
[350612788,1737994240179,-9617.58599899,0.00019165,2]
[350612791,1737994240189,-500.0,0.00019173,2]
[350612793,1737994240199,-500.0,0.00019178,2]
[350612795,1737994240212,-500.0,0.00019179,2]
[350612797,1737994240224,-500.0,0.00019179,2]
[350612799,1737994240234,-153.14,0.00019179,2]
[350612801,1737994240244,-582.37,0.00019179,2]
[350612804,1737994240254,-500.0,0.00019179,2]
[350612806,1737994240265,-500.0,0.00019179,2]
[350612807,1737994240275,-500.0,0.00019179,2]
[350612809,1737994240284,-500.0,0.00019179,2]
[350612811,1737994240293,-1755.22,0.00019179,2]
[350612813,1737994240303,-500.0,0.00019179,2]
[350612815,1737994240312,-500.0,0.00019179,2]
[350612817,1737994240322,-373.82,0.00019179,2]
[350612819,1737994240332,-500.0,0.00019179,2]
[350612821,1737994240342,-500.0,0.00019179,2]
[350612823,1737994240352,-500.0,0.00019179,2]
[350612825,1737994240361,-500.0,0.00019179,2]
[350612827,1737994240371,-500.0,0.00019179,2]
[350612830,1737994240381,-500.0,0.00019179,2]
[350612831,1737994240390,-500.0,0.00019179,2]
[350612833,1737994240399,-500.0,0.00019179,2]
[350612835,1737994240409,-500.0,0.00019179,2]
[350612837,1737994240418,-500.0,0.00019179,2]
[350612839,1737994240427,-637.90630285,0.00019179,2]
[350612841,1737994240436,-500.0,0.00019179,2]
[350612843,1737994240446,-500.0,0.00019179,2]
[350612845,1737994240455,-500.0,0.0001918,2]
[350612847,1737994240465,-605.0,0.0001918,2]
[350612849,1737994240474,-500.0,0.0001918,2]
[350612851,1737994240484,-154.87,0.0001918,2]
[350612853,1737994240493,-500.0,0.00019181,2]
[350612856,1737994240503,-500.0,0.00019181,2]
[350612857,1737994240512,-500.0,0.00019181,2]
[350612859,1737994240522,-500.0,0.00019181,2]
[350612861,1737994240531,-1000.0,0.000192,2]
[350612863,1737994240541,-1000.0,0.000192,4]
[350612864,1737994240551,-500.0,0.00019315,2]
[350612865,1737994240560,-500.0,0.00019316,2]
[350612866,1737994240569,-500.0,0.00019316,2]
[350612867,1737994240580,-500.0,0.00019316,2]
[350612868,1737994240590,-500.0,0.00019316,2]
[350612869,1737994240599,-576.30687862,0.00019316,2]
[350612870,1737994240609,-500.0,0.00019316,2]
[350612871,1737994240618,-1755.22,0.00019316,2]
[350612872,1737994240627,-467.6,0.00019316,2]
[350612873,1737994240637,-500.0,0.00019316,2]
[350612874,1737994240647,-381.24659217,0.00019316,2]
[350612875,1737994240656,-500.0,0.00019316,2]
[350612876,1737994240666,-500.0,0.00019316,2]
[350612877,1737994240675,-500.0,0.00019316,2]
[350612878,1737994240687,-500.0,0.00019316,2]
[350612879,1737994240696,-500.0,0.00019316,2]
[350612880,1737994240705,-500.0,0.00019316,2]
[350612881,1737994240714,-500.0,0.00019316,2]
[350612882,1737994240724,-500.0,0.00019316,2]
[350612884,1737994240734,-215.38,0.00019316,2]
[350612886,1737994240743,-500.0,0.00019316,2]
[350612888,1737994240752,-500.0,0.00019317,2]
[350612890,1737994240761,-500.0,0.00019318,2]
[350612892,1737994240771,-500.0,0.00019318,2]
[350612894,1737994240780,-600.33,0.00019318,2]
[350612896,1737994240789,-508.78,0.00019318,2]
[350612898,1737994240799,-437.03779697,0.00019357,2]
[350612900,1737994240808,-500.0,0.00019452,2]
[350612902,1737994240817,-193.57,0.00019453,2]
[350612904,1737994240826,-500.0,0.00019453,2]
[350612906,1737994240835,-500.0,0.00019453,2]
[350612908,1737994240844,-500.0,0.00019453,2]
[350612910,1737994240854,-1755.22,0.00019453,2]
[350612912,1737994240863,-500.0,0.00019453,2]
[350612914,1737994240872,-500.0,0.00019453,2]
[350612916,1737994240881,-500.0,0.00019453,2]
[350612918,1737994240891,-500.0,0.00019453,2]
[350612920,1737994240900,-500.0,0.00019453,2]
[350612922,1737994240909,-500.0,0.00019453,2]
[350612924,1737994240919,-500.0,0.00019453,2]
[350612926,1737994240929,-500.0,0.00019453,2]
[350612928,1737994240938,-500.0,0.00019453,2]
[350612930,1737994240948,-292.66080188,0.00019453,2]
[350612932,1737994240958,-500.0,0.00019453,2]
[350612934,1737994240969,-311.01,0.00019454,2]
[350612936,1737994240980,-500.0,0.00019455,2]
[350612938,1737994240990,-199.10362453,0.00019589,2]
[350612940,1737994240999,-500.0,0.0001959,2]
[350612942,1737994241009,-500.0,0.0001959,2]
[350612944,1737994241018,-500.0,0.0001959,2]
[350612946,1737994241028,-1755.22,0.0001959,2]
[350612948,1737994241037,-500.0,0.0001959,2]
[350612950,1737994241047,-629.61197073,0.0001959,2]
[350612952,1737994241058,-589.34,0.0001959,2]
[350612954,1737994241068,-564.11,0.0001959,2]
[350612956,1737994241078,-500.0,0.0001959,2]
[350612958,1737994241087,-331.46,0.0001959,2]
[350612960,1737994241097,-500.0,0.0001959,2]
[350612962,1737994241106,-203.08,0.00019592,2]
[350612964,1737994241116,-4385.11418824,0.00019646,2]
[350612966,1737994241125,-500.0,0.00019727,2]
[350612968,1737994241135,-500.0,0.00019727,2]
[350612970,1737994241144,-213.68757021,0.00019727,2]
[350612972,1737994241154,-1755.22,0.00019727,2]
[350612974,1737994241164,-500.0,0.00019727,2]
[350612976,1737994241173,-500.0,0.00019727,2]
[350612978,1737994241182,-500.0,0.00019727,2]
[350612980,1737994241191,-1755.22,0.00019864,2]
[350612982,1737994241201,-500.0,0.00019864,2]
[350612984,1737994241210,-500.0,0.00019864,2]
[350612986,1737994241220,-334.5,0.00019864,2]
[350612988,1737994241230,-5434.7044198,0.00019953,2]
[350612990,1737994241239,-8725.0,0.0002,2]
[350612992,1737994241248,-1755.22,0.00020001,2]
[350612994,1737994241258,-500.0,0.00020001,2]
[350612996,1737994241268,-500.0,0.00020001,2]
[350612998,1737994241278,-1755.22,0.00020138,2]
[350613000,1737994241287,-500.0,0.00020138,2]
[350613002,1737994241297,-500.0,0.00020138,2]
[350613004,1737994241306,-500.0,0.00020164,2]
[350613006,1737994241315,-2797.83961487,0.00020181,2]
[350613008,1737994241325,-1755.22,0.00020275,2]
[350613010,1737994241334,-500.0,0.00020275,2]
[350613012,1737994241343,-500.0,0.00020275,2]
[350613014,1737994241352,-151.0,0.00020278,2]
[350613016,1737994241361,-151.0,0.00020278,2]
[350613018,1737994241371,-1755.22,0.00020412,2]
[350613020,1737994241380,-500.0,0.00020412,2]
[350613022,1737994241390,-500.0,0.00020412,2]
[350613024,1737994241399,-1755.22,0.00020549,2]
[350613026,1737994241409,-500.0,0.00020549,2]
[350613028,1737994241418,-500.0,0.00020549,2]
[350613030,1737994241428,-1755.22,0.00020686,2]
[350613032,1737994241438,-500.0,0.00020686,2]
[350613034,1737994241447,-500.0,0.00020686,2]